fUSD/lending_fUSD_20250410
["ID","MTS","AMOUNT","RATE_DAILY","PERIOD"]
[357626881,1744243838246,-500.0,0.00038356,2]
[357626882,1744243838255,-500.0,0.00038356,2]
[357626883,1744243838265,-500.0,0.00038356,2]
[357626884,1744243838275,-500.0,0.00038356,2]
[357626885,1744243838285,-500.0,0.00038356,2]
[357626886,1744243838295,-500.0,0.00038356,2]
[357626887,1744243838305,-500.0,0.00038356,2]
[357626888,1744243838314,-500.0,0.00038356,2]
[357626889,1744243838325,-771.42,0.00038356,2]
[357626890,1744243838334,-500.0,0.00038356,2]
[357626891,1744243838343,-500.0,0.00038356,2]
[357626892,1744243838353,-738.67,0.00038356,2]
[357626893,1744243838362,-500.0,0.00038356,2]
[357626894,1744243838371,-500.0,0.00038356,2]
[357626895,1744243838381,-500.0,0.00038356,2]
[357626896,1744243838390,-500.0,0.00038356,2]
[357626897,1744243838399,-500.0,0.00038356,2]
[357626898,1744243838408,-500.0,0.00038356,2]
[357626899,1744243838417,-563.22909447,0.00038356,2]
[357626900,1744243838426,-500.0,0.00038356,2]
[357626901,1744243838436,-500.0,0.00038356,2]
[357626902,1744243838445,-500.0,0.00038356,2]
[357626903,1744243838455,-500.0,0.00038356,2]
[357626904,1744243838464,-500.0,0.00038356,2]
[357626905,1744243838474,-500.0,0.00038356,2]
[357626906,1744243838484,-500.0,0.00038356,2]
[357626907,1744243838493,-500.0,0.00038356,2]
[357626908,1744243838503,-500.0,0.00038356,2]
[357626909,1744243838513,-693.42,0.00038356,2]
[357626910,1744243838523,-500.0,0.00038356,2]
[357626911,1744243838533,-210.40135067,0.00038356,2]
[357626912,1744243838543,-500.0,0.00038356,2]
[357626913,1744243838552,-197.06950394,0.00038356,2]
[357626914,1744243838562,-505.93389787,0.00038356,2]
[357626915,1744243838572,-223.98354019,0.00038356,2]
[357626916,1744243838582,-538.29,0.00038356,2]
[357626917,1744243838591,-500.0,0.00038356,2]
[357626918,1744243838601,-500.0,0.00038356,2]
[357626919,1744243838610,-508.67282078,0.00038356,2]
[357626920,1744243838620,-500.0,0.00038356,2]
[357626921,1744243838630,-1127.83,0.00038356,2]
[357626922,1744243838639,-500.0,0.00038356,2]
[357626923,1744243838648,-500.0,0.00038356,2]
[357626924,1744243838658,-500.0,0.00038356,2]
[357626925,1744243838668,-374.72817384,0.00038356,2]
[357626926,1744243838677,-500.0,0.00038356,2]
[357626927,1744243838687,-500.0,0.00038356,2]
[357626928,1744243838696,-500.0,0.00038356,2]
[357626929,1744243838705,-500.0,0.00038356,2]
[357626930,1744243838715,-500.0,0.00038356,2]
[357626931,1744243838724,-500.0,0.00038356,2]
[357626932,1744243838734,-1106.78,0.00038356,2]
[357626933,1744243838744,-600.66,0.00038356,2]
[357626934,1744243838753,-500.0,0.00038356,2]
[357626935,1744243838763,-500.0,0.00038356,2]
[357626936,1744243838773,-500.0,0.00038356,2]
[357626937,1744243838783,-684.29,0.00038356,2]
[357626938,1744243838792,-507.63676285,0.00038356,2]
[357626939,1744243838802,-1151.05,0.00038356,2]
[357626940,1744243838811,-500.0,0.00038356,2]
[357626941,1744243838822,-500.0,0.00038356,2]
[357626942,1744243838831,-500.0,0.00038356,2]
[357626943,1744243838841,-814.9,0.00038356,2]
[357626944,1744243838851,-500.0,0.00038356,2]
[357626945,1744243838860,-1102.32,0.00038356,2]
[357626946,1744243838870,-500.0,0.00038356,2]
[357626947,1744243838880,-500.0,0.00038356,2]
[357626948,1744243838889,-500.0,0.00038356,2]
[357626949,1744243838899,-500.0,0.00038356,2]
[357626950,1744243838908,-500.0,0.00038356,2]
[357626951,1744243838918,-601.54,0.00038356,2]
[357626952,1744243838927,-500.0,0.00038356,2]
[357626953,1744243838937,-500.0,0.00038356,2]
[357626954,1744243838947,-976.39,0.00038356,2]
[357626955,1744243838956,-164.55852666,0.00038356,2]
[357626956,1744243838966,-1488.11,0.00038356,2]
[357626957,1744243838975,-764.1,0.00038356,2]
[357626958,1744243838986,-676.54,0.00038356,2]
[357626959,1744243838995,-500.0,0.00038356,2]
[357626960,1744243839004,-500.0,0.00038356,2]
[357626961,1744243839013,-500.0,0.00038356,2]
[357626962,1744243839022,-987.07,0.00038356,2]
[357626963,1744243839035,-161.350546,0.00038356,2]
[357626964,1744243839044,-500.0,0.00038356,2]
[357626965,1744243839054,-500.0,0.00038356,2]
[357626966,1744243839064,-500.0,0.00038356,2]
[357626967,1744243839075,-566.30026549,0.00038356,2]
[357626968,1744243839084,-500.0,0.00038356,2]
[357626969,1744243839094,-500.0,0.00038356,2]
[357626970,1744243839103,-500.0,0.00038356,2]
[357626971,1744243839116,-500.0,0.00038356,2]
[357626972,1744243839126,-1354.05,0.00038356,2]
[357626973,1744243839136,-500.0,0.00038356,2]
[357626974,1744243839147,-500.0,0.00038356,2]
[357626975,1744243839159,-500.0,0.00038356,2]
[357626976,1744243839169,-500.0,0.00038356,2]
[357626977,1744243839180,-500.0,0.00038356,2]
[357626978,1744243839193,-500.0,0.00038356,2]
[357626979,1744243839204,-530.89442664,0.00038356,2]
[357626980,1744243839214,-500.0,0.00038356,2]
[357626981,1744243839224,-600.91,0.00038356,2]
[357626982,1744243839233,-500.0,0.00038356,2]
[357626983,1744243839242,-500.0,0.00038356,2]
[357626984,1744243839252,-500.0,0.00038356,2]
[357626985,1744243839262,-1048.37,0.00038356,2]
[357626986,1744243839271,-779.34,0.00038356,2]
[357626987,1744243839280,-500.0,0.00038356,2]
[357626988,1744243839290,-500.0,0.00038356,2]
[357626989,1744243839302,-500.0,0.00038356,2]
[357626990,1744243839311,-500.0,0.00038356,2]
[357626991,1744243839323,-500.0,0.00038356,2]
[357626992,1744243839334,-500.0,0.00038356,2]
[357626993,1744243839344,-673.96,0.00038356,2]
[357626994,1744243839354,-500.0,0.00038356,2]
[357626995,1744243839364,-500.0,0.00038356,2]
[357626996,1744243839373,-500.0,0.00038356,2]
[357626997,1744243839383,-734.44,0.00038356,2]
[357626998,1744243839392,-500.0,0.00038356,2]
[357626999,1744243839402,-500.0,0.00038356,2]
[357627000,1744243839411,-529.2642342,0.00038356,2]
[357627001,1744243839420,-669.2,0.00038356,2]
[357627002,1744243839429,-500.0,0.00038356,2]
[357627003,1744243839438,-500.0,0.00038356,2]
[357627004,1744243839447,-503.76122684,0.00038356,2]
[357627005,1744243839457,-500.0,0.00038356,2]
[357627006,1744243839466,-500.0,0.00038356,2]
[357627007,1744243839475,-500.0,0.00038356,2]
[357627008,1744243839485,-500.0,0.00038356,2]
[357627009,1744243839494,-500.0,0.00038356,2]
[357627010,1744243839503,-500.0,0.00038356,2]
[357627011,1744243839512,-500.0,0.00038356,2]
[357627012,1744243839522,-500.0,0.00038356,2]
[357627013,1744243839531,-500.0,0.00038356,2]
[357627014,1744243839540,-500.0,0.00038356,2]
[357627015,1744243839550,-537.40962821,0.00038356,2]
[357627016,1744243839559,-596.44318842,0.00038356,2]
[357627017,1744243839568,-500.0,0.00038356,2]
[357627018,1744243839579,-500.0,0.00038356,2]
[357627019,1744243839588,-500.0,0.00038356,2]
[357627020,1744243839598,-500.0,0.00038356,2]
[357627021,1744243839607,-500.0,0.00038356,2]
[357627022,1744243839617,-500.0,0.00038356,2]
[357627023,1744243839627,-500.0,0.00038356,2]
[357627024,1744243839636,-500.0,0.00038356,2]
[357627025,1744243839646,-500.0,0.00038356,2]
[357627026,1744243839655,-500.0,0.00038356,2]
[357627027,1744243839665,-399.46818282,0.00038356,2]
[357627028,1744243839674,-557.52,0.00038356,2]
[357627029,1744243839684,-528.86504943,0.00038356,2]
[357627030,1744243839694,-500.0,0.00038356,2]
[357627031,1744243839703,-500.0,0.00038356,2]
[357627032,1744243839713,-500.0,0.00038356,2]
[357627033,1744243839722,-500.0,0.00038356,2]
[357627034,1744243839731,-890.15,0.00038356,2]
[357627035,1744243839741,-8.14443725,0.00038356,2]
[357627037,1744243839832,-491.85556275,0.00038356,2]
[357627038,1744243839841,-68.9456598,0.00038356,2]
[357627042,1744243841482,-150.0,0.00038083,2]
[357627043,1744243841493,-150.0,0.00038085,2]
[357627044,1744243841502,-150.0,0.00038089,2]
[357627045,1744243841512,-150.0,0.0003809,2]
[357627046,1744243841521,-150.0,0.00038091,2]
[357627047,1744243841530,-150.0,0.00038091,2]
[357627048,1744243841540,-150.0,0.00038095,2]
[357627049,1744243841550,-150.0,0.00038095,2]
[357627050,1744243841560,-150.0,0.00038096,2]
[357627051,1744243841569,-150.0,0.00038099,2]
[357627052,1744243841579,-150.0,0.000381,2]
[357627053,1744243841589,-150.0,0.00038105,2]
[357627054,1744243841598,-150.0,0.00038105,2]
[357627055,1744243841608,-150.0,0.00038114,2]
[357627056,1744243841618,-150.0,0.00038117,2]
[357627057,1744243841628,-150.0,0.00038118,2]
[357627058,1744243841638,-150.0,0.0003812,2]
[357627059,1744243841648,-150.0,0.00038121,2]
[357627060,1744243841658,-150.0,0.00038121,2]
[357627061,1744243841668,-150.0,0.00038125,2]
[357627062,1744243841678,-150.0,0.00038128,2]
[357627063,1744243841688,-150.0,0.00038132,2]
[357627064,1744243841697,-150.0,0.00038134,2]
[357627065,1744243841707,-150.0,0.00038135,2]
[357627066,1744243841716,-150.0,0.00038136,2]
[357627067,1744243841726,-150.0,0.00038137,2]
[357627068,1744243841736,-150.0,0.0003814,2]
[357627069,1744243841746,-150.0,0.00038146,2]
[357627070,1744243841755,-150.0,0.00038147,2]
[357627071,1744243841764,-150.0,0.00038157,2]
[357627072,1744243841774,-150.0,0.00038157,2]
[357627073,1744243841784,-150.0,0.00038161,2]
[357627074,1744243841794,-150.0,0.00038163,2]
[357627075,1744243841804,-150.0,0.00038167,2]
[357627076,1744243841814,-150.0,0.00038168,2]
[357627077,1744243841825,-150.0,0.00038172,2]
[357627078,1744243841835,-150.0,0.00038175,2]
[357627079,1744243841845,-150.0,0.00038178,2]
[357627080,1744243841854,-150.0,0.00038178,2]
[357627081,1744243841864,-150.0,0.00038178,2]
[357627082,1744243841874,-150.0,0.00038181,2]
[357627083,1744243841885,-150.0,0.00038182,2]
[357627084,1744243841895,-150.0,0.00038183,2]
[357627085,1744243841904,-150.0,0.00038204,2]
[357627086,1744243841914,-150.0,0.00038204,2]
[357627087,1744243841924,-150.0,0.00038205,2]
[357627088,1744243841933,-150.0,0.00038208,2]
[357627089,1744243841943,-150.0,0.00038211,2]
[357627090,1744243841952,-150.0,0.00038214,2]
[357627091,1744243841962,-150.0,0.00038216,2]
[357627092,1744243841972,-150.0,0.00038219,2]
[357627093,1744243841981,-150.0,0.00038223,2]
[357627094,1744243841991,-150.0,0.00038225,2]
[357627095,1744243842001,-150.0,0.00038232,2]
[357627096,1744243842010,-150.0,0.00038235,2]
[357627097,1744243842020,-150.0,0.00038236,2]
[357627098,1744243842030,-150.0,0.00038239,2]
[357627099,1744243842039,-150.0,0.00038241,2]
[357627100,1744243842048,-150.0,0.00038242,2]
[357627101,1744243842058,-150.0,0.00038245,2]
[357627102,1744243842067,-150.0,0.00038248,2]
[357627103,1744243842077,-150.0,0.00038248,2]
[357627104,1744243842087,-150.0,0.00038252,2]
[357627105,1744243842097,-150.0,0.00038254,2]
[357627106,1744243842107,-150.0,0.00038257,2]
[357627107,1744243842121,-150.0,0.00038258,2]
[357627108,1744243842131,-150.0,0.0003826,2]
[357627109,1744243842140,-150.0,0.00038262,2]
[357627110,1744243842151,-150.0,0.00038264,2]
[357627111,1744243842161,-150.0,0.00038267,2]
[357627112,1744243842172,-150.0,0.0003827,2]
[357627113,1744243842181,-150.0,0.00038272,2]
[357627114,1744243842192,-150.0,0.00038273,2]
[357627115,1744243842201,-150.0,0.00038275,2]
[357627116,1744243842211,-150.0,0.00038276,2]
[357627117,1744243842220,-150.0,0.00038283,2]
[357627118,1744243842230,-150.0,0.00038285,2]
[357627119,1744243842239,-150.0,0.00038288,2]
[357627120,1744243842248,-150.0,0.00038295,2]
[357627121,1744243842258,-150.0,0.00038297,2]
[357627122,1744243842268,-150.0,0.00038297,2]
[357627123,1744243842277,-150.0,0.00038298,2]
[357627124,1744243842287,-150.0,0.00038302,2]
[357627125,1744243842296,-150.0,0.00038305,2]
[357627126,1744243842306,-150.0,0.00038313,2]
[357627127,1744243842318,-150.0,0.00038313,2]
[357627128,1744243842329,-150.0,0.00038317,2]
[357627129,1744243842339,-150.0,0.00038322,2]
[357627130,1744243842348,-150.0,0.00038325,2]
[357627131,1744243842358,-150.0,0.00038328,2]
[357627132,1744243842367,-150.0,0.0003833,2]
[357627133,1744243842376,-150.0,0.0003833,2]
[357627134,1744243842386,-150.0,0.00038336,2]
[357627135,1744243842395,-150.0,0.00038342,2]
[357627136,1744243842405,-150.0,0.00038345,2]
[357627137,1744243842415,-150.0,0.00038345,2]
[357627138,1744243842424,-150.0,0.00038347,2]
[357627139,1744243842433,-150.0,0.0003835,2]
[357627140,1744243842443,-150.0,0.00038352,2]
[357627141,1744243842452,-431.0543402,0.00038356,2]
[357627142,1744243842462,-500.0,0.00038356,2]
[357627143,1744243842472,-500.0,0.00038356,2]
[357627144,1744243842482,-851.89,0.00038356,2]
[357627145,1744243842491,-500.0,0.00038356,2]
[357627146,1744243842501,-865.9,0.00038356,2]
[357627147,1744243842511,-500.0,0.00038356,2]
[357627149,1744243842520,-500.0,0.00038356,2]
[357627151,1744243842530,-500.0,0.00038356,2]
[357627152,1744243842539,-501.16553126,0.00038356,2]
[357627153,1744243842549,-500.0,0.00038356,2]
[357627154,1744243842559,-761.0,0.00038356,2]
[357627155,1744243842568,-500.0,0.00038356,2]
[357627156,1744243842579,-500.0,0.00038356,2]
[357627157,1744243842589,-500.0,0.00038356,2]
[357627158,1744243842598,-500.0,0.00038356,2]
[357627159,1744243842608,-500.0,0.00038356,2]
[357627160,1744243842618,-643.36,0.00038356,2]
[357627161,1744243842627,-500.0,0.00038356,2]
[357627162,1744243842637,-500.0,0.00038356,2]
[357627163,1744243842647,-500.0,0.00038356,2]
[357627164,1744243842656,-500.0,0.00038356,2]
[357627165,1744243842667,-462.11036092,0.00038356,2]
[357627166,1744243842677,-500.0,0.00038356,2]
[357627167,1744243842686,-700.43,0.00038356,2]
[357627168,1744243842696,-500.0,0.00038356,2]
[357627169,1744243842705,-500.0,0.00038356,2]
[357627170,1744243842715,-500.0,0.00038356,2]
[357627171,1744243842724,-500.0,0.00038356,2]
[357627172,1744243842734,-500.0,0.00038356,2]
[357627173,1744243842744,-500.0,0.00038356,2]
[357627174,1744243842753,-2000.0,0.00038356,2]
[357627175,1744243842763,-500.0,0.00038356,2]
[357627176,1744243842772,-500.0,0.00038356,2]
[357627177,1744243842782,-508.71549493,0.00038356,2]
[357627178,1744243842792,-1052.34,0.00038356,2]
[357627179,1744243842802,-584.13505264,0.00038356,2]
[357627180,1744243842812,-500.0,0.00038356,2]
[357627181,1744243842823,-500.0,0.00038356,2]
[357627182,1744243842839,-500.0,0.00038356,2]
[357627183,1744243842850,-500.0,0.00038356,2]
[357627184,1744243842859,-500.0,0.00038356,2]
[357627185,1744243843062,-500.0,0.00038356,2]
[357627186,1744243843072,-500.0,0.00038356,2]
[357627187,1744243843083,-500.0,0.00038356,2]
[357627188,1744243843093,-582.79,0.00038356,2]
[357627189,1744243843102,-1000.0,0.00038356,2]
[357627190,1744243843114,-500.0,0.00038356,2]
[357627191,1744243843123,-805.49,0.00038356,2]
[357627193,1744243843132,-500.0,0.00038356,2]
[357627194,1744243843141,-243.21804039,0.00038356,2]
[357627195,1744243843151,-500.0,0.00038356,2]
[357627196,1744243843160,-500.0,0.00038356,2]
[357627197,1744243843169,-500.0,0.00038356,2]
[357627198,1744243843179,-500.0,0.00038356,2]
[357627199,1744243843188,-500.0,0.00038356,2]
[357627200,1744243843198,-500.0,0.00038356,2]
[357627201,1744243843207,-949.45,0.00038356,2]
[357627202,1744243843216,-500.0,0.00038356,2]
[357627203,1744243843225,-500.0,0.00038356,2]
[357627204,1744243843235,-500.0,0.00038356,2]
[357627205,1744243843244,-524.33,0.00038356,2]
[357627206,1744243843253,-500.0,0.00038356,2]
[357627208,1744243843262,-500.0,0.00038356,2]
[357627210,1744243843270,-500.0,0.00038356,2]
[357627212,1744243843280,-500.0,0.00038356,2]
[357627214,1744243843290,-504.22828292,0.00038356,2]
[357627216,1744243843299,-2024.88,0.00038356,2]
[357627218,1744243843309,-925.07,0.00038356,2]
[357627220,1744243843318,-500.0,0.00038356,2]
[357627222,1744243843328,-500.0,0.00038356,2]
[357627223,1744243843338,-500.0,0.00038356,2]
[357627224,1744243843347,-500.0,0.00038356,2]
[357627225,1744243843357,-1075.32,0.00038356,2]
[357627226,1744243843367,-500.0,0.00038356,2]
[357627227,1744243843376,-500.0,0.00038356,2]
[357627228,1744243843386,-640.01,0.00038356,120]
[357627229,1744243843395,-644.65294722,0.00038356,2]
[357627230,1744243843405,-500.0,0.00038356,2]
[357627231,1744243843414,-500.0,0.00038356,2]
[357627232,1744243843424,-500.0,0.00038356,2]
[357627233,1744243843434,-500.0,0.00038356,2]
[357627234,1744243843444,-1018.29,0.00038356,2]
[357627235,1744243843454,-500.0,0.00038356,2]
[357627236,1744243843463,-956.78,0.00038356,2]
[357627237,1744243843473,-500.0,0.00038356,2]
[357627238,1744243843483,-500.0,0.00038356,2]
[357627239,1744243843493,-500.0,0.00038356,2]
[357627240,1744243843503,-500.0,0.00038356,2]
[357627241,1744243843513,-567.52,0.00038356,2]
[357627242,1744243843523,-600.12,0.00038356,2]
[357627243,1744243843532,-551.41,0.00038356,2]
[357627244,1744243843542,-500.0,0.00038356,2]
[357627245,1744243843551,-607.59,0.00038356,2]
[357627246,1744243843561,-500.0,0.00038356,2]
[357627247,1744243843571,-500.0,0.00038356,2]
[357627248,1744243843582,-500.0,0.00038356,2]
[357627249,1744243843591,-500.0,0.00038356,2]
[357627250,1744243843601,-500.0,0.00038356,2]
[357627251,1744243843611,-696.24,0.00038356,2]
[357627252,1744243843621,-500.0,0.00038356,2]
[357627253,1744243843631,-500.0,0.00038356,2]
[357627254,1744243843640,-500.0,0.00038356,2]
[357627255,1744243843650,-500.0,0.00038356,2]
[357627256,1744243843660,-183.64184237,0.00038356,2]
[357627257,1744243843670,-500.0,0.00038356,2]
[357627258,1744243843680,-6.93530112,0.00038356,2]
[357627259,1744243843700,-493.06469888,0.00038356,2]
[357627260,1744243843710,-544.28533089,0.00038356,2]
[357627261,1744243843723,-162.35466911,0.00038356,2]
[357627262,1744243843733,-390.07033089,0.00038356,2]
[357627263,1744243843756,-150.0,0.00038285,2]
[357627264,1744243843766,-356.77966911,0.00038356,2]
[357627265,1744243843775,-746.85,0.00038356,2]
[357627266,1744243843784,-746.85,0.00038356,2]
[357627267,1744243843793,-281.39398024,0.00038356,2]
[357627268,1744243843806,-465.45601976,0.00038356,2]
[357627269,1744243843815,-674.81,0.00038356,2]
[357627270,1744243843825,-156.19002374,0.00038356,2]
[357627271,1744243843840,-590.65997626,0.00038356,2]
[357627272,1744243843850,-746.85,0.00038356,2]
[357627273,1744243843861,-500.0,0.00038356,2]
[357627274,1744243843870,-746.85,0.00038356,2]
[357627275,1744243843880,-500.0,0.00038356,2]
[357627276,1744243843890,-1138.96,0.00038356,2]
[357627277,1744243843900,-500.0,0.00038356,2]
[357627278,1744243843910,-599.52,0.00038356,2]
[357627279,1744243843919,-500.0,0.00038356,2]
[357627280,1744243843928,-500.78233999,0.00038356,2]
[357627281,1744243843938,-500.0,0.00038356,2]
[357627282,1744243843948,-500.0,0.00038356,2]
[357627283,1744243843958,-500.0,0.00038356,2]
[357627284,1744243843967,-744.07,0.00038356,2]
[357627285,1744243843977,-500.0,0.00038356,2]
[357627286,1744243843986,-500.0,0.00038356,2]
[357627287,1744243843996,-544.95327945,0.00038356,2]
[357627288,1744243844006,-500.0,0.00038356,2]
[357627289,1744243844015,-510.11697582,0.00038356,2]
[357627290,1744243844025,-502.45126188,0.00038356,2]
[357627291,1744243844034,-500.0,0.00038356,2]
[357627292,1744243844043,-500.0,0.00038356,2]
[357627293,1744243844053,-163.47181084,0.00038356,2]
[357627294,1744243844063,-1091.45,0.00038356,2]
[357627295,1744243844072,-539.91478102,0.00038356,2]
[357627296,1744243844082,-500.0,0.00038356,2]
[357627297,1744243844092,-500.0,0.00038356,2]
[357627298,1744243844101,-500.0,0.00038356,2]
[357627299,1744243844113,-500.0,0.00038356,2]
[357627300,1744243844123,-500.0,0.00038356,2]
[357627301,1744243844133,-500.0,0.00038356,2]
[357627302,1744243844142,-500.0,0.00038356,2]
[357627303,1744243844152,-500.0,0.00038356,2]
[357627304,1744243844162,-580.37184105,0.00038356,2]
[357627305,1744243844172,-500.0,0.00038356,2]
[357627306,1744243844181,-500.0,0.00038356,2]
[357627307,1744243844192,-500.0,0.00038356,2]
[357627308,1744243844202,-500.0,0.00038356,2]
[357627309,1744243844211,-500.0,0.00038356,2]
[357627310,1744243844220,-500.0,0.00038356,2]
[357627311,1744243844230,-500.0,0.00038356,2]
[357627312,1744243844239,-500.0,0.00038356,2]
[357627313,1744243844248,-500.0,0.00038356,2]
[357627314,1744243844258,-512.45456025,0.00038356,2]
[357627315,1744243844267,-500.0,0.00038356,2]
[357627316,1744243844277,-500.0,0.00038356,2]
[357627317,1744243844287,-500.0,0.00038356,2]
[357627318,1744243844298,-500.0,0.00038356,2]
[357627319,1744243844308,-500.0,0.00038356,2]
[357627320,1744243844317,-500.0,0.00038356,2]
[357627321,1744243844329,-500.0,0.00038356,2]
[357627322,1744243844338,-500.0,0.00038356,2]
[357627323,1744243844348,-500.0,0.00038356,2]
[357627324,1744243844358,-500.0,0.00038356,2]
[357627325,1744243844367,-500.0,0.00038356,2]
[357627326,1744243844377,-500.0,0.00038356,2]
[357627327,1744243844387,-500.0,0.00038356,2]
[357627328,1744243844396,-850.11,0.00038356,2]
[357627329,1744243844405,-151.0,0.00038356,7]
[357627330,1744243844415,-500.0,0.00038356,2]
[357627331,1744243844425,-564.23,0.00038356,2]
[357627332,1744243844434,-980.91,0.00038356,2]
[357627333,1744243844444,-500.0,0.00038356,2]
[357627334,1744243844453,-575.82,0.00038356,2]
[357627335,1744243844463,-500.0,0.00038356,2]
[357627336,1744243844472,-324.96528951,0.00038356,2]
[357627337,1744243844482,-628.73,0.00038356,2]
[357627338,1744243844491,-300.0,0.00038356,30]
[357627339,1744243844500,-701.62,0.00038356,2]
[357627340,1744243844510,-500.0,0.00038356,2]
[357627341,1744243844519,-500.0,0.00038356,2]
[357627342,1744243844529,-500.0,0.00038356,2]
[357627343,1744243844538,-500.0,0.00038356,2]
[357627344,1744243844549,-500.0,0.00038356,2]
[357627345,1744243844559,-500.0,0.00038356,2]
[357627346,1744243844568,-500.0,0.00038356,2]
[357627347,1744243844578,-674.49,0.00038356,2]
[357627348,1744243844589,-500.0,0.00038356,2]
[357627349,1744243844599,-500.0,0.00038356,2]
[357627350,1744243844610,-500.0,0.00038356,2]
[357627351,1744243844619,-500.0,0.00038356,2]
[357627352,1744243844630,-503.07417109,0.00038356,2]
[357627353,1744243844640,-503.92126776,0.00038356,2]
[357627354,1744243844650,-500.0,0.00038356,2]
[357627355,1744243844659,-508.06670316,0.00038356,2]
[357627356,1744243844669,-500.0,0.00038356,2]
[357627357,1744243844678,-506.09,0.00038356,2]
[357627358,1744243844688,-846.31,0.00038356,2]
[357627359,1744243844697,-500.0,0.00038356,2]
[357627360,1744243844707,-500.0,0.00038356,2]
[357627361,1744243844716,-500.0,0.00038356,2]
[357627362,1744243844727,-1008.97,0.00038356,2]
[357627363,1744243844737,-505.98079454,0.00038356,2]
[357627364,1744243844748,-505.16472959,0.00038356,2]
[357627365,1744243844765,-500.0,0.00038356,2]
[357627366,1744243844775,-507.52,0.00038356,2]
[357627367,1744243844784,-992.17,0.00038356,2]
[357627368,1744243844794,-507.04943451,0.00038356,2]
[357627369,1744243844803,-502.45208875,0.00038356,2]
[357627370,1744243844812,-504.66933669,0.00038356,2]
[357627371,1744243844821,-500.0,0.00038356,2]
[357627372,1744243844831,-935.73,0.00038356,2]
[357627373,1744243844841,-500.0,0.00038356,2]
[357627374,1744243844850,-502.75427451,0.00038356,2]
[357627375,1744243844860,-906.8,0.00038356,2]
[357627376,1744243844870,-1045.7471011,0.00038356,30]
[357627377,1744243844880,-500.0,0.00038356,2]
[357627378,1744243844889,-972.01,0.00038356,2]
[357627379,1744243844899,-500.0,0.00038356,2]
[357627380,1744243844909,-500.0,0.00038356,2]
[357627381,1744243844918,-500.0,0.00038356,2]
[357627382,1744243844928,-500.0,0.00038356,2]
[357627383,1744243844937,-500.0,0.00038356,2]
[357627384,1744243844946,-500.0,0.00038356,2]
[357627385,1744243844956,-786.41,0.00038356,2]
[357627386,1744243844965,-500.0,0.00038356,2]
[357627387,1744243844974,-500.0,0.00038356,2]
[357627388,1744243844983,-500.0,0.00038356,2]
[357627389,1744243844993,-502.71570049,0.00038356,2]
[357627390,1744243845002,-500.0,0.00038356,2]
[357627391,1744243845011,-904.2,0.00038356,2]
[357627392,1744243845021,-500.0,0.00038356,2]
[357627393,1744243845030,-500.0,0.00038356,2]
[357627394,1744243845039,-663.93,0.00038356,2]
[357627395,1744243845048,-500.0,0.00038356,2]